Workbook

Sheet Сложение
A1: =RANDBETWEEN($X$16,$X$17) -> 680 | B1: + | C1: =RANDBETWEEN($X$16,$X$17) -> 612 | D1: = | E1: =A1+C1 -> 1292 | H1: =RANDBETWEEN($X$16,$X$17) -> 671 | I1: + | J1: =RANDBETWEEN($X$16,$X$17) -> 269 | K1: = | L1: =H1+J1 -> 940 | O1: =RANDBETWEEN($X$16,$X$17) -> 596 | P1: + | Q1: =RANDBETWEEN($X$16,$X$17) -> 124 | R1: = | S1: =O1+Q1 -> 720
A3: =RANDBETWEEN($X$16,$X$17) -> 817 | B3: + | C3: =RANDBETWEEN($X$16,$X$17) -> 714 | D3: = | E3: =A3+C3 -> 1531 | H3: =RANDBETWEEN($X$16,$X$17) -> 770 | I3: + | J3: =RANDBETWEEN($X$16,$X$17) -> 508 | K3: = | L3: =H3+J3 -> 1278 | O3: =RANDBETWEEN($X$16,$X$17) -> 165 | P3: + | Q3: =RANDBETWEEN($X$16,$X$17) -> 148 | R3: = | S3: =O3+Q3 -> 313
A5: =RANDBETWEEN($X$16,$X$17) -> 528 | B5: + | C5: =RANDBETWEEN($X$16,$X$17) -> 342 | D5: = | E5: =A5+C5 -> 870 | H5: =RANDBETWEEN($X$16,$X$17) -> 981 | I5: + | J5: =RANDBETWEEN($X$16,$X$17) -> 489 | K5: = | L5: =H5+J5 -> 1470 | O5: =RANDBETWEEN($X$16,$X$17) -> 690 | P5: + | Q5: =RANDBETWEEN($X$16,$X$17) -> 252 | R5: = | S5: =O5+Q5 -> 942
A7: =RANDBETWEEN($X$16,$X$17) -> 203 | B7: + | C7: =RANDBETWEEN($X$16,$X$17) -> 153 | D7: = | E7: =A7+C7 -> 356 | H7: =RANDBETWEEN($X$16,$X$17) -> 475 | I7: + | J7: =RANDBETWEEN($X$16,$X$17) -> 517 | K7: = | L7: =H7+J7 -> 992 | O7: =RANDBETWEEN($X$16,$X$17) -> 727 | P7: + | Q7: =RANDBETWEEN($X$16,$X$17) -> 619 | R7: = | S7: =O7+Q7 -> 1346
V8: Статистика:
A9: =RANDBETWEEN($X$16,$X$17) -> 577 | B9: + | C9: =RANDBETWEEN($X$16,$X$17) -> 150 | D9: = | E9: =A9+C9 -> 727 | H9: =RANDBETWEEN($X$16,$X$17) -> 589 | I9: + | J9: =RANDBETWEEN($X$16,$X$17) -> 209 | K9: = | L9: =H9+J9 -> 798 | O9: =RANDBETWEEN($X$16,$X$17) -> 108 | P9: + | Q9: =RANDBETWEEN($X$16,$X$17) -> 870 | R9: = | S9: =O9+Q9 -> 978
V10: Правильных ответов:
A11: =RANDBETWEEN($X$16,$X$17) -> 833 | B11: + | C11: =RANDBETWEEN($X$16,$X$17) -> 576 | D11: = | E11: =A11+C11 -> 1409 | H11: =RANDBETWEEN($X$16,$X$17) -> 354 | I11: + | J11: =RANDBETWEEN($X$16,$X$17) -> 694 | K11: = | L11: =H11+J11 -> 1048 | O11: =RANDBETWEEN($X$16,$X$17) -> 180 | P11: + | Q11: =RANDBETWEEN($X$16,$X$17) -> 714 | R11: = | S11: =O11+Q11 -> 894
V12: Неправильных ответов:
A13: =RANDBETWEEN($X$16,$X$17) -> 613 | B13: + | C13: =RANDBETWEEN($X$16,$X$17) -> 428 | D13: = | E13: =A13+C13 -> 1041 | H13: =RANDBETWEEN($X$16,$X$17) -> 289 | I13: + | J13: =RANDBETWEEN($X$16,$X$17) -> 831 | K13: = | L13: =H13+J13 -> 1120 | O13: =RANDBETWEEN($X$16,$X$17) -> 537 | P13: + | Q13: =RANDBETWEEN($X$16,$X$17) -> 576 | R13: = | S13: =O13+Q13 -> 1113
A15: =RANDBETWEEN($X$16,$X$17) -> 284 | B15: + | C15: =RANDBETWEEN($X$16,$X$17) -> 473 | D15: = | E15: =A15+C15 -> 757 | H15: =RANDBETWEEN($X$16,$X$17) -> 647 | I15: + | J15: =RANDBETWEEN($X$16,$X$17) -> 132 | K15: = | L15: =H15+J15 -> 779 | O15: =RANDBETWEEN($X$16,$X$17) -> 858 | P15: + | Q15: =RANDBETWEEN($X$16,$X$17) -> 646 | R15: = | S15: =O15+Q15 -> 1504 | V15: Число:
V16: Минимум: | X16: 100
A17: =RANDBETWEEN($X$16,$X$17) -> 360 | B17: + | C17: =RANDBETWEEN($X$16,$X$17) -> 516 | D17: = | E17: =A17+C17 -> 876 | H17: =RANDBETWEEN($X$16,$X$17) -> 774 | I17: + | J17: =RANDBETWEEN($X$16,$X$17) -> 707 | K17: = | L17: =H17+J17 -> 1481 | O17: =RANDBETWEEN($X$16,$X$17) -> 773 | P17: + | Q17: =RANDBETWEEN($X$16,$X$17) -> 128 | R17: = | S17: =O17+Q17 -> 901 | V17: Максимум: | X17: 999
A19: =RANDBETWEEN($X$16,$X$17) -> 987 | B19: + | C19: =RANDBETWEEN($X$16,$X$17) -> 481 | D19: = | E19: =A19+C19 -> 1468 | H19: =RANDBETWEEN($X$16,$X$17) -> 621 | I19: + | J19: =RANDBETWEEN($X$16,$X$17) -> 273 | K19: = | L19: =H19+J19 -> 894 | O19: =RANDBETWEEN($X$16,$X$17) -> 496 | P19: + | Q19: =RANDBETWEEN($X$16,$X$17) -> 730 | R19: = | S19: =O19+Q19 -> 1226
V20: Дата: | W20: =TODAY() -> 2016-04-08
A21: =RANDBETWEEN($X$16,$X$17) -> 598 | B21: + | C21: =RANDBETWEEN($X$16,$X$17) -> 655 | D21: = | E21: =A21+C21 -> 1253 | H21: =RANDBETWEEN($X$16,$X$17) -> 654 | I21: + | J21: =RANDBETWEEN($X$16,$X$17) -> 849 | K21: = | L21: =H21+J21 -> 1503 | O21: =RANDBETWEEN($X$16,$X$17) -> 431 | P21: + | Q21: =RANDBETWEEN($X$16,$X$17) -> 975 | R21: = | S21: =O21+Q21 -> 1406
A23: =RANDBETWEEN($X$16,$X$17) -> 724 | B23: + | C23: =RANDBETWEEN($X$16,$X$17) -> 769 | D23: = | E23: =A23+C23 -> 1493 | H23: =RANDBETWEEN($X$16,$X$17) -> 620 | I23: + | J23: =RANDBETWEEN($X$16,$X$17) -> 635 | K23: = | L23: =H23+J23 -> 1255 | O23: =RANDBETWEEN($X$16,$X$17) -> 507 | P23: + | Q23: =RANDBETWEEN($X$16,$X$17) -> 922 | R23: = | S23: =O23+Q23 -> 1429
A25: =RANDBETWEEN($X$16,$X$17) -> 509 | B25: + | C25: =RANDBETWEEN($X$16,$X$17) -> 863 | D25: = | E25: =A25+C25 -> 1372 | H25: =RANDBETWEEN($X$16,$X$17) -> 707 | I25: + | J25: =RANDBETWEEN($X$16,$X$17) -> 655 | K25: = | L25: =H25+J25 -> 1362 | O25: =RANDBETWEEN($X$16,$X$17) -> 872 | P25: + | Q25: =RANDBETWEEN($X$16,$X$17) -> 453 | R25: = | S25: =O25+Q25 -> 1325
A27: =RANDBETWEEN($X$16,$X$17) -> 382 | B27: + | C27: =RANDBETWEEN($X$16,$X$17) -> 547 | D27: = | E27: =A27+C27 -> 929 | H27: =RANDBETWEEN($X$16,$X$17) -> 208 | I27: + | J27: =RANDBETWEEN($X$16,$X$17) -> 670 | K27: = | L27: =H27+J27 -> 878 | O27: =RANDBETWEEN($X$16,$X$17) -> 872 | P27: + | Q27: =RANDBETWEEN($X$16,$X$17) -> 752 | R27: = | S27: =O27+Q27 -> 1624
A29: =RANDBETWEEN($X$16,$X$17) -> 301 | B29: + | C29: =RANDBETWEEN($X$16,$X$17) -> 430 | D29: = | E29: =A29+C29 -> 731 | H29: =RANDBETWEEN($X$16,$X$17) -> 334 | I29: + | J29: =RANDBETWEEN($X$16,$X$17) -> 543 | K29: = | L29: =H29+J29 -> 877 | O29: =RANDBETWEEN($X$16,$X$17) -> 764 | P29: + | Q29: =RANDBETWEEN($X$16,$X$17) -> 462 | R29: = | S29: =O29+Q29 -> 1226

Sheet Вычетание
A1: =C1*RANDBETWEEN(2,9) -> 920 | B1: - | C1: =RANDBETWEEN($X$16,$X$17) -> 115 | D1: = | E1: =A1-C1 -> 805 | H1: =J1*RANDBETWEEN(2,9) -> 660 | I1: - | J1: =RANDBETWEEN($X$16,$X$17) -> 110 | K1: = | L1: =H1-J1 -> 550 | O1: =Q1*RANDBETWEEN(2,9) -> 963 | P1: - | Q1: =RANDBETWEEN($X$16,$X$17) -> 107 | R1: = | S1: =O1-Q1 -> 856
A3: =C3*RANDBETWEEN(2,9) -> 230 | B3: - | C3: =RANDBETWEEN($X$16,$X$17) -> 115 | D3: = | E3: =A3-C3 -> 115 | H3: =J3*RANDBETWEEN(2,9) -> 848 | I3: - | J3: =RANDBETWEEN($X$16,$X$17) -> 106 | K3: = | L3: =H3-J3 -> 742 | O3: =Q3*RANDBETWEEN(2,9) -> 672 | P3: - | Q3: =RANDBETWEEN($X$16,$X$17) -> 112 | R3: = | S3: =O3-Q3 -> 560
A5: =C5*RANDBETWEEN(2,9) -> 234 | B5: - | C5: =RANDBETWEEN($X$16,$X$17) -> 117 | D5: = | E5: =A5-C5 -> 117 | H5: =J5*RANDBETWEEN(2,9) -> 777 | I5: - | J5: =RANDBETWEEN($X$16,$X$17) -> 111 | K5: = | L5: =H5-J5 -> 666 | O5: =Q5*RANDBETWEEN(2,9) -> 872 | P5: - | Q5: =RANDBETWEEN($X$16,$X$17) -> 109 | R5: = | S5: =O5-Q5 -> 763
A7: =C7*RANDBETWEEN(2,9) -> 206 | B7: - | C7: =RANDBETWEEN($X$16,$X$17) -> 103 | D7: = | E7: =A7-C7 -> 103 | H7: =J7*RANDBETWEEN(2,9) -> 763 | I7: - | J7: =RANDBETWEEN($X$16,$X$17) -> 109 | K7: = | L7: =H7-J7 -> 654 | O7: =Q7*RANDBETWEEN(2,9) -> 612 | P7: - | Q7: =RANDBETWEEN($X$16,$X$17) -> 102 | R7: = | S7: =O7-Q7 -> 510
V8: Статистика:
A9: =C9*RANDBETWEEN(2,9) -> 952 | B9: - | C9: =RANDBETWEEN($X$16,$X$17) -> 119 | D9: = | E9: =A9-C9 -> 833 | H9: =J9*RANDBETWEEN(2,9) -> 1080 | I9: - | J9: =RANDBETWEEN($X$16,$X$17) -> 120 | K9: = | L9: =H9-J9 -> 960 | O9: =Q9*RANDBETWEEN(2,9) -> 351 | P9: - | Q9: =RANDBETWEEN($X$16,$X$17) -> 117 | R9: = | S9: =O9-Q9 -> 234
V10: Правильных ответов:
A11: =C11*RANDBETWEEN(2,9) -> 872 | B11: - | C11: =RANDBETWEEN($X$16,$X$17) -> 109 | D11: = | E11: =A11-C11 -> 763 | H11: =J11*RANDBETWEEN(2,9) -> 672 | I11: - | J11: =RANDBETWEEN($X$16,$X$17) -> 112 | K11: = | L11: =H11-J11 -> 560 | O11: =Q11*RANDBETWEEN(2,9) -> 728 | P11: - | Q11: =RANDBETWEEN($X$16,$X$17) -> 104 | R11: = | S11: =O11-Q11 -> 624
V12: Неправильных ответов:
A13: =C13*RANDBETWEEN(2,9) -> 342 | B13: - | C13: =RANDBETWEEN($X$16,$X$17) -> 114 | D13: = | E13: =A13-C13 -> 228 | H13: =J13*RANDBETWEEN(2,9) -> 535 | I13: - | J13: =RANDBETWEEN($X$16,$X$17) -> 107 | K13: = | L13: =H13-J13 -> 428 | O13: =Q13*RANDBETWEEN(2,9) -> 824 | P13: - | Q13: =RANDBETWEEN($X$16,$X$17) -> 103 | R13: = | S13: =O13-Q13 -> 721
A15: =C15*RANDBETWEEN(2,9) -> 684 | B15: - | C15: =RANDBETWEEN($X$16,$X$17) -> 114 | D15: = | E15: =A15-C15 -> 570 | H15: =J15*RANDBETWEEN(2,9) -> 714 | I15: - | J15: =RANDBETWEEN($X$16,$X$17) -> 119 | K15: = | L15: =H15-J15 -> 595 | O15: =Q15*RANDBETWEEN(2,9) -> 666 | P15: - | Q15: =RANDBETWEEN($X$16,$X$17) -> 111 | R15: = | S15: =O15-Q15 -> 555 | V15: Число:
V16: Минимум: | X16: 100
A17: =C17*RANDBETWEEN(2,9) -> 999 | B17: - | C17: =RANDBETWEEN($X$16,$X$17) -> 111 | D17: = | E17: =A17-C17 -> 888 | H17: =J17*RANDBETWEEN(2,9) -> 784 | I17: - | J17: =RANDBETWEEN($X$16,$X$17) -> 112 | K17: = | L17: =H17-J17 -> 672 | O17: =Q17*RANDBETWEEN(2,9) -> 700 | P17: - | Q17: =RANDBETWEEN($X$16,$X$17) -> 100 | R17: = | S17: =O17-Q17 -> 600 | V17: Максимум: | X17: 120
A19: =C19*RANDBETWEEN(2,9) -> 360 | B19: - | C19: =RANDBETWEEN($X$16,$X$17) -> 120 | D19: = | E19: =A19-C19 -> 240 | H19: =J19*RANDBETWEEN(2,9) -> 590 | I19: - | J19: =RANDBETWEEN($X$16,$X$17) -> 118 | K19: = | L19: =H19-J19 -> 472 | O19: =Q19*RANDBETWEEN(2,9) -> 777 | P19: - | Q19: =RANDBETWEEN($X$16,$X$17) -> 111 | R19: = | S19: =O19-Q19 -> 666
V20: Дата: | W20: =TODAY() -> 2016-04-08
A21: =C21*RANDBETWEEN(2,9) -> 840 | B21: - | C21: =RANDBETWEEN($X$16,$X$17) -> 105 | D21: = | E21: =A21-C21 -> 735 | H21: =J21*RANDBETWEEN(2,9) -> 330 | I21: - | J21: =RANDBETWEEN($X$16,$X$17) -> 110 | K21: = | L21: =H21-J21 -> 220 | O21: =Q21*RANDBETWEEN(2,9) -> 545 | P21: - | Q21: =RANDBETWEEN($X$16,$X$17) -> 109 | R21: = | S21: =O21-Q21 -> 436
A23: =C23*RANDBETWEEN(2,9) -> 600 | B23: - | C23: =RANDBETWEEN($X$16,$X$17) -> 120 | D23: = | E23: =A23-C23 -> 480 | H23: =J23*RANDBETWEEN(2,9) -> 880 | I23: - | J23: =RANDBETWEEN($X$16,$X$17) -> 110 | K23: = | L23: =H23-J23 -> 770 | O23: =Q23*RANDBETWEEN(2,9) -> 333 | P23: - | Q23: =RANDBETWEEN($X$16,$X$17) -> 111 | R23: = | S23: =O23-Q23 -> 222
A25: =C25*RANDBETWEEN(2,9) -> 468 | B25: - | C25: =RANDBETWEEN($X$16,$X$17) -> 117 | D25: = | E25: =A25-C25 -> 351 | H25: =J25*RANDBETWEEN(2,9) -> 618 | I25: - | J25: =RANDBETWEEN($X$16,$X$17) -> 103 | K25: = | L25: =H25-J25 -> 515 | O25: =Q25*RANDBETWEEN(2,9) -> 945 | P25: - | Q25: =RANDBETWEEN($X$16,$X$17) -> 105 | R25: = | S25: =O25-Q25 -> 840
A27: =C27*RANDBETWEEN(2,9) -> 936 | B27: - | C27: =RANDBETWEEN($X$16,$X$17) -> 117 | D27: = | E27: =A27-C27 -> 819 | H27: =J27*RANDBETWEEN(2,9) -> 236 | I27: - | J27: =RANDBETWEEN($X$16,$X$17) -> 118 | K27: = | L27: =H27-J27 -> 118 | O27: =Q27*RANDBETWEEN(2,9) -> 904 | P27: - | Q27: =RANDBETWEEN($X$16,$X$17) -> 113 | R27: = | S27: =O27-Q27 -> 791
A29: =C29*RANDBETWEEN(2,9) -> 777 | B29: - | C29: =RANDBETWEEN($X$16,$X$17) -> 111 | D29: = | E29: =A29-C29 -> 666 | H29: =J29*RANDBETWEEN(2,9) -> 238 | I29: - | J29: =RANDBETWEEN($X$16,$X$17) -> 119 | K29: = | L29: =H29-J29 -> 119 | O29: =Q29*RANDBETWEEN(2,9) -> 525 | P29: - | Q29: =RANDBETWEEN($X$16,$X$17) -> 105 | R29: = | S29: =O29-Q29 -> 420

Sheet Умножение
A1: =RANDBETWEEN($X$16,$X$17) -> 94 | B1: х | C1: =RANDBETWEEN($X$16,$X$17) -> 72 | D1: = | E1: =A1*C1 -> 6768 | H1: =RANDBETWEEN($X$16,$X$17) -> 51 | I1: х | J1: =RANDBETWEEN($X$16,$X$17) -> 76 | K1: = | L1: =H1*J1 -> 3876 | O1: =RANDBETWEEN($X$16,$X$17) -> 79 | P1: х | Q1: =RANDBETWEEN($X$16,$X$17) -> 97 | R1: = | S1: =O1*Q1 -> 7663
A3: =RANDBETWEEN($X$16,$X$17) -> 36 | B3: х | C3: =RANDBETWEEN($X$16,$X$17) -> 65 | D3: = | E3: =A3*C3 -> 2340 | H3: =RANDBETWEEN($X$16,$X$17) -> 75 | I3: х | J3: =RANDBETWEEN($X$16,$X$17) -> 87 | K3: = | L3: =H3*J3 -> 6525 | O3: =RANDBETWEEN($X$16,$X$17) -> 14 | P3: х | Q3: =RANDBETWEEN($X$16,$X$17) -> 33 | R3: = | S3: =O3*Q3 -> 462
A5: =RANDBETWEEN($X$16,$X$17) -> 55 | B5: х | C5: =RANDBETWEEN($X$16,$X$17) -> 96 | D5: = | E5: =A5*C5 -> 5280 | H5: =RANDBETWEEN($X$16,$X$17) -> 42 | I5: х | J5: =RANDBETWEEN($X$16,$X$17) -> 22 | K5: = | L5: =H5*J5 -> 924 | O5: =RANDBETWEEN($X$16,$X$17) -> 29 | P5: х | Q5: =RANDBETWEEN($X$16,$X$17) -> 35 | R5: = | S5: =O5*Q5 -> 1015
A7: =RANDBETWEEN($X$16,$X$17) -> 16 | B7: х | C7: =RANDBETWEEN($X$16,$X$17) -> 21 | D7: = | E7: =A7*C7 -> 336 | H7: =RANDBETWEEN($X$16,$X$17) -> 62 | I7: х | J7: =RANDBETWEEN($X$16,$X$17) -> 96 | K7: = | L7: =H7*J7 -> 5952 | O7: =RANDBETWEEN($X$16,$X$17) -> 52 | P7: х | Q7: =RANDBETWEEN($X$16,$X$17) -> 18 | R7: = | S7: =O7*Q7 -> 936
V8: Статистика:
A9: =RANDBETWEEN($X$16,$X$17) -> 95 | B9: х | C9: =RANDBETWEEN($X$16,$X$17) -> 77 | D9: = | E9: =A9*C9 -> 7315 | H9: =RANDBETWEEN($X$16,$X$17) -> 66 | I9: х | J9: =RANDBETWEEN($X$16,$X$17) -> 99 | K9: = | L9: =H9*J9 -> 6534 | O9: =RANDBETWEEN($X$16,$X$17) -> 40 | P9: х | Q9: =RANDBETWEEN($X$16,$X$17) -> 25 | R9: = | S9: =O9*Q9 -> 1000
V10: Правильных ответов:
A11: =RANDBETWEEN($X$16,$X$17) -> 95 | B11: х | C11: =RANDBETWEEN($X$16,$X$17) -> 93 | D11: = | E11: =A11*C11 -> 8835 | H11: =RANDBETWEEN($X$16,$X$17) -> 80 | I11: х | J11: =RANDBETWEEN($X$16,$X$17) -> 57 | K11: = | L11: =H11*J11 -> 4560 | O11: =RANDBETWEEN($X$16,$X$17) -> 92 | P11: х | Q11: =RANDBETWEEN($X$16,$X$17) -> 31 | R11: = | S11: =O11*Q11 -> 2852
V12: Неправильных ответов:
A13: =RANDBETWEEN($X$16,$X$17) -> 83 | B13: х | C13: =RANDBETWEEN($X$16,$X$17) -> 91 | D13: = | E13: =A13*C13 -> 7553 | H13: =RANDBETWEEN($X$16,$X$17) -> 69 | I13: х | J13: =RANDBETWEEN($X$16,$X$17) -> 88 | K13: = | L13: =H13*J13 -> 6072 | O13: =RANDBETWEEN($X$16,$X$17) -> 39 | P13: х | Q13: =RANDBETWEEN($X$16,$X$17) -> 94 | R13: = | S13: =O13*Q13 -> 3666
A15: =RANDBETWEEN($X$16,$X$17) -> 15 | B15: х | C15: =RANDBETWEEN($X$16,$X$17) -> 89 | D15: = | E15: =A15*C15 -> 1335 | H15: =RANDBETWEEN($X$16,$X$17) -> 36 | I15: х | J15: =RANDBETWEEN($X$16,$X$17) -> 18 | K15: = | L15: =H15*J15 -> 648 | O15: =RANDBETWEEN($X$16,$X$17) -> 64 | P15: х | Q15: =RANDBETWEEN($X$16,$X$17) -> 78 | R15: = | S15: =O15*Q15 -> 4992 | V15: Число:
V16: Минимум: | X16: 10
A17: =RANDBETWEEN($X$16,$X$17) -> 42 | B17: х | C17: =RANDBETWEEN($X$16,$X$17) -> 73 | D17: = | E17: =A17*C17 -> 3066 | H17: =RANDBETWEEN($X$16,$X$17) -> 95 | I17: х | J17: =RANDBETWEEN($X$16,$X$17) -> 100 | K17: = | L17: =H17*J17 -> 9500 | O17: =RANDBETWEEN($X$16,$X$17) -> 50 | P17: х | Q17: =RANDBETWEEN($X$16,$X$17) -> 94 | R17: = | S17: =O17*Q17 -> 4700 | V17: Максимум: | X17: 100
A19: =RANDBETWEEN($X$16,$X$17) -> 50 | B19: х | C19: =RANDBETWEEN($X$16,$X$17) -> 12 | D19: = | E19: =A19*C19 -> 600 | H19: =RANDBETWEEN($X$16,$X$17) -> 42 | I19: х | J19: =RANDBETWEEN($X$16,$X$17) -> 44 | K19: = | L19: =H19*J19 -> 1848 | O19: =RANDBETWEEN($X$16,$X$17) -> 10 | P19: х | Q19: =RANDBETWEEN($X$16,$X$17) -> 15 | R19: = | S19: =O19*Q19 -> 150
V20: Дата: | W20: =TODAY() -> 2016-04-08
A21: =RANDBETWEEN($X$16,$X$17) -> 25 | B21: х | C21: =RANDBETWEEN($X$16,$X$17) -> 57 | D21: = | E21: =A21*C21 -> 1425 | H21: =RANDBETWEEN($X$16,$X$17) -> 12 | I21: х | J21: =RANDBETWEEN($X$16,$X$17) -> 70 | K21: = | L21: =H21*J21 -> 840 | O21: =RANDBETWEEN($X$16,$X$17) -> 32 | P21: х | Q21: =RANDBETWEEN($X$16,$X$17) -> 52 | R21: = | S21: =O21*Q21 -> 1664
A23: =RANDBETWEEN($X$16,$X$17) -> 35 | B23: х | C23: =RANDBETWEEN($X$16,$X$17) -> 86 | D23: = | E23: =A23*C23 -> 3010 | H23: =RANDBETWEEN($X$16,$X$17) -> 26 | I23: х | J23: =RANDBETWEEN($X$16,$X$17) -> 67 | K23: = | L23: =H23*J23 -> 1742 | O23: =RANDBETWEEN($X$16,$X$17) -> 75 | P23: х | Q23: =RANDBETWEEN($X$16,$X$17) -> 34 | R23: = | S23: =O23*Q23 -> 2550
A25: =RANDBETWEEN($X$16,$X$17) -> 52 | B25: х | C25: =RANDBETWEEN($X$16,$X$17) -> 17 | D25: = | E25: =A25*C25 -> 884 | H25: =RANDBETWEEN($X$16,$X$17) -> 31 | I25: х | J25: =RANDBETWEEN($X$16,$X$17) -> 46 | K25: = | L25: =H25*J25 -> 1426 | O25: =RANDBETWEEN($X$16,$X$17) -> 63 | P25: х | Q25: =RANDBETWEEN($X$16,$X$17) -> 83 | R25: = | S25: =O25*Q25 -> 5229
A27: =RANDBETWEEN($X$16,$X$17) -> 95 | B27: х | C27: =RANDBETWEEN($X$16,$X$17) -> 84 | D27: = | E27: =A27*C27 -> 7980 | H27: =RANDBETWEEN($X$16,$X$17) -> 36 | I27: х | J27: =RANDBETWEEN($X$16,$X$17) -> 34 | K27: = | L27: =H27*J27 -> 1224 | O27: =RANDBETWEEN($X$16,$X$17) -> 44 | P27: x | Q27: =RANDBETWEEN($X$16,$X$17) -> 78 | R27: = | S27: =O27*Q27 -> 3432
A29: =RANDBETWEEN($X$16,$X$17) -> 28 | B29: х | C29: =RANDBETWEEN($X$16,$X$17) -> 64 | D29: = | E29: =A29*C29 -> 1792 | H29: =RANDBETWEEN($X$16,$X$17) -> 85 | I29: х | J29: =RANDBETWEEN($X$16,$X$17) -> 24 | K29: = | L29: =H29*J29 -> 2040 | O29: =RANDBETWEEN($X$16,$X$17) -> 63 | P29: х | Q29: =RANDBETWEEN($X$16,$X$17) -> 29 | R29: = | S29: =O29*Q29 -> 1827

Sheet Деление
A1: =C1*E1 -> 377 | B1: : | C1: =RANDBETWEEN($X$16,$X$17) -> 13 | D1: = | E1: =RANDBETWEEN($X$16,$X$17) -> 29 | H1: =J1*L1 -> 140 | I1: : | J1: =RANDBETWEEN($X$16,$X$17) -> 14 | K1: = | L1: =RANDBETWEEN($X$16,$X$17) -> 10 | O1: =Q1*S1 -> 190 | P1: : | Q1: =RANDBETWEEN($X$16,$X$17) -> 10 | R1: = | S1: =RANDBETWEEN($X$16,$X$17) -> 19
A3: =C3*E3 -> 348 | B3: : | C3: =RANDBETWEEN($X$16,$X$17) -> 12 | D3: = | E3: =RANDBETWEEN($X$16,$X$17) -> 29 | H3: =J3*L3 -> 575 | I3: : | J3: =RANDBETWEEN($X$16,$X$17) -> 23 | K3: = | L3: =RANDBETWEEN($X$16,$X$17) -> 25 | O3: =Q3*S3 -> 360 | P3: : | Q3: =RANDBETWEEN($X$16,$X$17) -> 12 | R3: = | S3: =RANDBETWEEN($X$16,$X$17) -> 30
A5: =C5*E5 -> 192 | B5: : | C5: =RANDBETWEEN($X$16,$X$17) -> 12 | D5: = | E5: =RANDBETWEEN($X$16,$X$17) -> 16 | H5: =J5*L5 -> 209 | I5: : | J5: =RANDBETWEEN($X$16,$X$17) -> 19 | K5: = | L5: =RANDBETWEEN($X$16,$X$17) -> 11 | O5: =Q5*S5 -> 459 | P5: : | Q5: =RANDBETWEEN($X$16,$X$17) -> 27 | R5: = | S5: =RANDBETWEEN($X$16,$X$17) -> 17
A7: =C7*E7 -> 420 | B7: : | C7: =RANDBETWEEN($X$16,$X$17) -> 21 | D7: = | E7: =RANDBETWEEN($X$16,$X$17) -> 20 | H7: =J7*L7 -> 660 | I7: : | J7: =RANDBETWEEN($X$16,$X$17) -> 30 | K7: = | L7: =RANDBETWEEN($X$16,$X$17) -> 22 | O7: =Q7*S7 -> 143 | P7: : | Q7: =RANDBETWEEN($X$16,$X$17) -> 11 | R7: = | S7: =RANDBETWEEN($X$16,$X$17) -> 13
V8: Статистика:
A9: =C9*E9 -> 132 | B9: : | C9: =RANDBETWEEN($X$16,$X$17) -> 11 | D9: = | E9: =RANDBETWEEN($X$16,$X$17) -> 12 | H9: =J9*L9 -> 900 | I9: : | J9: =RANDBETWEEN($X$16,$X$17) -> 30 | K9: = | L9: =RANDBETWEEN($X$16,$X$17) -> 30 | O9: =Q9*S9 -> 500 | P9: : | Q9: =RANDBETWEEN($X$16,$X$17) -> 25 | R9: = | S9: =RANDBETWEEN($X$16,$X$17) -> 20
V10: Правильных ответов:
A11: =C11*E11 -> 340 | B11: : | C11: =RANDBETWEEN($X$16,$X$17) -> 17 | D11: = | E11: =RANDBETWEEN($X$16,$X$17) -> 20 | H11: =J11*L11 -> 630 | I11: : | J11: =RANDBETWEEN($X$16,$X$17) -> 30 | K11: = | L11: =RANDBETWEEN($X$16,$X$17) -> 21 | O11: =Q11*S11 -> 168 | P11: : | Q11: =RANDBETWEEN($X$16,$X$17) -> 12 | R11: = | S11: =RANDBETWEEN($X$16,$X$17) -> 14
V12: Неправильных ответов:
A13: =C13*E13 -> 437 | B13: : | C13: =RANDBETWEEN($X$16,$X$17) -> 23 | D13: = | E13: =RANDBETWEEN($X$16,$X$17) -> 19 | H13: =J13*L13 -> 312 | I13: : | J13: =RANDBETWEEN($X$16,$X$17) -> 26 | K13: = | L13: =RANDBETWEEN($X$16,$X$17) -> 12 | O13: =Q13*S13 -> 297 | P13: : | Q13: =RANDBETWEEN($X$16,$X$17) -> 27 | R13: = | S13: =RANDBETWEEN($X$16,$X$17) -> 11
A15: =C15*E15 -> 273 | B15: : | C15: =RANDBETWEEN($X$16,$X$17) -> 13 | D15: = | E15: =RANDBETWEEN($X$16,$X$17) -> 21 | H15: =J15*L15 -> 288 | I15: : | J15: =RANDBETWEEN($X$16,$X$17) -> 18 | K15: = | L15: =RANDBETWEEN($X$16,$X$17) -> 16 | O15: =Q15*S15 -> 168 | P15: : | Q15: =RANDBETWEEN($X$16,$X$17) -> 12 | R15: = | S15: =RANDBETWEEN($X$16,$X$17) -> 14 | V15: Число:
V16: Минимум: | X16: 10
A17: =C17*E17 -> 552 | B17: : | C17: =RANDBETWEEN($X$16,$X$17) -> 23 | D17: = | E17: =RANDBETWEEN($X$16,$X$17) -> 24 | H17: =J17*L17 -> 475 | I17: : | J17: =RANDBETWEEN($X$16,$X$17) -> 19 | K17: = | L17: =RANDBETWEEN($X$16,$X$17) -> 25 | O17: =Q17*S17 -> 493 | P17: : | Q17: =RANDBETWEEN($X$16,$X$17) -> 29 | R17: = | S17: =RANDBETWEEN($X$16,$X$17) -> 17 | V17: Максимум: | X17: 30
A19: =C19*E19 -> 221 | B19: : | C19: =RANDBETWEEN($X$16,$X$17) -> 13 | D19: = | E19: =RANDBETWEEN($X$16,$X$17) -> 17 | H19: =J19*L19 -> 336 | I19: : | J19: =RANDBETWEEN($X$16,$X$17) -> 14 | K19: = | L19: =RANDBETWEEN($X$16,$X$17) -> 24 | O19: =Q19*S19 -> 150 | P19: : | Q19: =RANDBETWEEN($X$16,$X$17) -> 10 | R19: = | S19: =RANDBETWEEN($X$16,$X$17) -> 15
V20: Дата: | W20: =TODAY() -> 2016-04-08
A21: =C21*E21 -> 351 | B21: : | C21: =RANDBETWEEN($X$16,$X$17) -> 13 | D21: = | E21: =RANDBETWEEN($X$16,$X$17) -> 27 | H21: =J21*L21 -> 286 | I21: : | J21: =RANDBETWEEN($X$16,$X$17) -> 13 | K21: = | L21: =RANDBETWEEN($X$16,$X$17) -> 22 | O21: =Q21*S21 -> 552 | P21: : | Q21: =RANDBETWEEN($X$16,$X$17) -> 23 | R21: = | S21: =RANDBETWEEN($X$16,$X$17) -> 24
A23: =C23*E23 -> 483 | B23: : | C23: =RANDBETWEEN($X$16,$X$17) -> 23 | D23: = | E23: =RANDBETWEEN($X$16,$X$17) -> 21 | H23: =J23*L23 -> 275 | I23: : | J23: =RANDBETWEEN($X$16,$X$17) -> 11 | K23: = | L23: =RANDBETWEEN($X$16,$X$17) -> 25 | O23: =Q23*S23 -> 630 | P23: : | Q23: =RANDBETWEEN($X$16,$X$17) -> 30 | R23: = | S23: =RANDBETWEEN($X$16,$X$17) -> 21
A25: =C25*E25 -> 464 | B25: : | C25: =RANDBETWEEN($X$16,$X$17) -> 16 | D25: = | E25: =RANDBETWEEN($X$16,$X$17) -> 29 | H25: =J25*L25 -> 504 | I25: : | J25: =RANDBETWEEN($X$16,$X$17) -> 24 | K25: = | L25: =RANDBETWEEN($X$16,$X$17) -> 21 | O25: =Q25*S25 -> 575 | P25: : | Q25: =RANDBETWEEN($X$16,$X$17) -> 25 | R25: = | S25: =RANDBETWEEN($X$16,$X$17) -> 23
A27: =C27*E27 -> 280 | B27: : | C27: =RANDBETWEEN($X$16,$X$17) -> 20 | D27: = | E27: =RANDBETWEEN($X$16,$X$17) -> 14 | H27: =J27*L27 -> 432 | I27: : | J27: =RANDBETWEEN($X$16,$X$17) -> 27 | K27: = | L27: =RANDBETWEEN($X$16,$X$17) -> 16 | O27: =Q27*S27 -> 416 | P27: : | Q27: =RANDBETWEEN($X$16,$X$17) -> 26 | R27: = | S27: =RANDBETWEEN($X$16,$X$17) -> 16
A29: =C29*E29 -> 196 | B29: : | C29: =RANDBETWEEN($X$16,$X$17) -> 14 | D29: = | E29: =RANDBETWEEN($X$16,$X$17) -> 14 | H29: =J29*L29 -> 170 | I29: : | J29: =RANDBETWEEN($X$16,$X$17) -> 10 | K29: = | L29: =RANDBETWEEN($X$16,$X$17) -> 17 | O29: =Q29*S29 -> 420 | P29: : | Q29: =RANDBETWEEN($X$16,$X$17) -> 15 | R29: = | S29: =RANDBETWEEN($X$16,$X$17) -> 28
